bitfinex/quotes_ETHUSD_20250129
["timestamp","ask_amount","ask_price","bid_price","bid_amount"]
[1738177280744,0.8289,3118.9,3116.8,3.20841]
[1738177280745,3.20699,3118.2,3116.8,3.20841]
[1738177280950,3.20671,3118.5,3117.4,3.2077]
[1738177281150,3.20588,3119.3,3116.7,0.7631]
[1738177281151,3.20578,3119.4,3118.6,3.20655]
[1738177281315,5.93569832,3120.2,3118.5,0.0075]
[1738177281316,0.792,3120.2,3118.5,0.0075]
[1738177281514,3.20447,3120.7,3118.6,3.20654]
[1738177281742,0.0075,3120.4,3119.0,3.20605]
[1738177281934,3.20471,3120.4,3118.8,3.20635]
[1738177282115,0.0075,3120.5,3118.4,0.7631]
[1738177282319,3.20578,3119.4,3118.6,3.20656]
[1738177282720,3.20618,3119.0,3118.4,0.7631]
[1738177282903,3.20573,3119.5,3118.4,0.7631]
[1738177283248,3.2053,3119.9,3119.0,3.20606]
[1738177283455,4.11852683,3120.6,3119.1,0.0320553]
[1738177283596,3.20549,3119.7,3118.4,0.7631]
[1738177283802,0.792,3120.8,3118.4,0.7631]
[1738177283803,3.20533,3119.8,3118.4,0.7631]
[1738177284045,0.55,3119.7,3118.4,0.7631]
[1738177284358,3.20665,3118.6,3117.7,0.8183]
[1738177284498,3.20632,3118.9,3117.9,3.20728]
[1738177284697,3.20574,3119.4,3118.2,3.20694]
[1738177284955,3.20574,3119.4,3117.8,0.03206805]
[1738177284956,3.20574,3119.4,3118.3,3.20682]
[1738177285150,3.20521,3120.0,3117.9,3.20727]
[1738177285151,3.0,3119.9,3117.9,3.20727]
[1738177285332,0.55,3118.7,3117.7,0.8183]
[1738177285641,3.20672,3118.5,3117.7,0.8183]
[1738177285796,3.20658,3118.6,3117.8,3.20733]
[1738177285995,3.20616,3119.0,3117.7,0.8183]
[1738177286259,3.20655,3118.7,3117.7,0.8183]
[1738177286465,0.676366,3119.0,3118.3,3.20686]
[1738177286643,3.2065,3118.7,3117.7,0.8183]
[1738177286845,3.20512,3120.0,3117.8,3.20738]
[1738177287164,3.20586,3119.3,3118.2,3.20688]
[1738177287368,0.015,3119.7,3117.7,0.8183]
[1738177287676,3.2072,3118.0,3117.1,0.7843]
[1738177287834,3.20692,3118.3,3117.2,0.03207537]
[1738177288039,3.20778,3117.5,3117.1,0.7843]
[1738177288353,3.20749,3117.7,3115.7,0.7843]
[1738177288520,3.20944,3115.8,3114.9,3.21029]
[1738177288720,3.20811,3117.1,3114.3,0.825]
[1738177288721,3.20909,3116.2,3114.3,0.825]
[1738177289038,3.20893,3116.3,3114.3,0.825]
[1738177289236,3.20921,3116.1,3114.4,3.03209664]
[1738177289468,0.8128,3117.4,3115.3,3.0]
[1738177289773,3.20784,3117.4,3116.4,0.8087]
[1738177290086,3.0,3118.0,3117.1,3.20802]
[1738177290225,3.0,3118.2,3116.4,0.8012]
[1738177290226,3.0,3118.2,3116.9,3.20831]
[1738177290430,3.0,3118.2,3116.4,0.8012]
[1738177290431,3.20767,3117.6,3116.7,3.20841]
[1738177290665,3.20677,3118.4,3117.0,3.20814]
[1738177290832,3.20656,3118.6,3116.4,0.8012]
[1738177291026,3.20656,3118.6,3115.8,0.7842]
[1738177291027,3.20769,3117.5,3115.8,0.7842]
[1738177291276,3.20852,3116.7,3116.0,3.20922]
[1738177291490,3.20878,3116.5,3114.4,0.7811]
[1738177291629,3.20841,3116.8,3115.2,3.20998]
[1738177291827,3.20839,3116.9,3115.6,3.20957]
[1738177292071,0.7728,3117.2,3115.6,3.20963]
[1738177292072,3.20893,3116.4,3115.6,3.20963]
[1738177292277,6.20825,3117.0,3115.8,0.7601]
[1738177292572,3.20809,3117.2,3116.3,3.20884]
[1738177292724,0.0075,3117.7,3116.2,3.20901]
[1738177292928,3.20803,3117.2,3116.5,3.20867]
[1738177293174,0.7733,3118.4,3116.6,0.03208401]
[1738177293377,3.20757,3117.7,3116.9,3.20825]
[1738177293531,3.2078,3117.4,3115.8,0.7601]
[1738177293730,3.20739,3117.8,3117.0,3.20815]
[1738177293934,3.20739,3117.8,3116.0,3.20924]
[1738177293935,0.0075,3117.7,3115.8,3.96952]
[1738177294176,3.2081,3117.2,3115.8,0.7601]
[1738177294342,3.5575,3117.1,3115.8,0.7601]
[1738177294550,3.20934,3116.0,3115.1,0.7573]
[1738177294855,0.5575,3116.6,3115.1,0.7573]
[1738177295056,0.0075,3116.4,3115.1,0.7573]
[1738177295255,3.20926,3116.0,3115.1,0.7573]
[1738177295456,3.20935,3115.9,3115.1,3.96739]
[1738177295832,0.321571,3116.8,3115.1,0.7573]
[1738177296257,0.0075,3116.6,3115.1,0.7573]
[1738177296432,0.8277,3117.1,3115.7,3.20952]
[1738177296433,3.20821,3117.0,3115.7,3.20952]
[1738177296629,0.8277,3117.1,3115.3,3.015]
[1738177296630,3.20833,3116.9,3115.3,3.015]
[1738177296857,3.20842,3116.8,3116.1,3.20909]
[1738177297059,3.20769,3117.5,3116.5,3.20872]
[1738177297262,3.20823,3117.0,3116.4,0.83]
[1738177297492,3.20913,3116.2,3115.2,0.83]
[1738177297644,8.14369832,3117.6,3115.7,3.20947]
[1738177297645,6.20862,3116.6,3115.7,3.20947]
[1738177297850,3.2088,3116.5,3115.7,3.20953]
[1738177298060,3.2086,3116.7,3115.4,0.0075]
[1738177298277,6.20851,3116.8,3115.9,3.20924]
[1738177298574,3.20823,3117.0,3116.2,3.20894]
[1738177298776,3.20823,3117.0,3115.5,6.4195]
[1738177298940,3.20801,3117.2,3116.3,3.20891]
[1738177299282,3.2084,3116.9,3116.0,3.20914]
[1738177299695,3.20772,3117.5,3116.8,3.20837]
[1738177299992,3.20772,3117.5,3116.7,3.20852]
[1738177299993,3.0,3117.4,3116.7,3.20852]
[1738177300149,0.0075,3117.6,3115.8,0.7991]
[1738177300479,0.5575,3117.4,3115.8,0.7991]
[1738177300774,3.20859,3116.7,3115.9,3.20933]
[1738177300958,3.20829,3117.0,3116.0,0.03209151]
[1738177301139,3.20829,3117.0,3115.8,0.7991]
[1738177301140,3.20801,3117.2,3116.4,3.20882]
[1738177301334,3.96888,3117.7,3115.8,0.7991]
[1738177301335,3.20863,3116.6,3115.8,0.7991]
[1738177301534,3.20893,3116.3,3115.8,0.7991]
[1738177301735,3.20879,3116.5,3115.8,0.7991]
[1738177302374,0.55,3117.0,3115.8,4.00847]
[1738177302579,3.20862,3116.7,3116.1,3.20912]
[1738177302765,3.20811,3117.1,3115.8,0.7991]
[1738177302969,3.20878,3116.5,3115.8,4.00852]
[1738177303173,3.20801,3117.2,3116.6,3.20862]
[1738177303344,3.20815,3117.1,3116.5,3.20865]
[1738177303542,3.20744,3117.8,3116.4,0.0075]
[1738177303880,3.20773,3117.5,3116.7,3.20845]
[1738177304244,3.20749,3117.7,3116.4,3.20878]
[1738177304445,3.20824,3117.0,3116.3,3.20891]
[1738177304754,0.5575,3117.1,3115.8,0.7991]
[1738177304960,3.20839,3116.9,3116.2,3.20896]
[1738177305203,3.20848,3116.8,3116.0,3.20915]
[1738177305405,0.0075,3117.2,3115.8,0.7991]
[1738177305605,3.20903,3116.3,3115.8,0.7991]
[1738177305845,3.0,3116.9,3115.8,0.7991]
[1738177306045,3.20792,3117.3,3116.0,0.015]
[1738177306188,3.20801,3117.2,3116.6,3.2086]
[1738177306389,3.208,3117.2,3116.3,3.20891]
[1738177306641,3.208,3117.2,3116.4,3.20876]
[1738177306843,3.0,3117.4,3116.2,3.20901]
[1738177307138,3.20811,3117.1,3116.3,3.20889]
[1738177307345,3.20811,3117.1,3116.4,3.20879]
[1738177307528,3.20811,3117.1,3116.3,3.20889]
[1738177307529,3.20772,3117.5,3115.9,0.0075]
[1738177307729,3.20728,3118.0,3117.2,3.20793]
[1738177307931,0.7883,3118.6,3117.2,3.208]
[1738177307932,3.20697,3118.3,3117.2,3.208]
[1738177308239,0.7883,3118.6,3117.0,0.786]
[1738177308446,3.20666,3118.5,3116.5,0.7818]
[1738177308653,0.7883,3118.6,3117.3,3.20788]
[1738177308887,0.7883,3118.6,3117.4,3.20779]
[1738177309180,0.0075,3118.2,3116.7,3.20851]
[1738177309473,3.20769,3117.6,3116.8,3.20838]
[1738177309677,3.20769,3117.6,3116.5,0.7818]
[1738177309678,3.20788,3117.4,3116.7,3.20849]
[1738177309833,3.20787,3117.4,3116.7,3.20851]
[1738177310047,3.20703,3118.2,3117.3,3.20788]
[1738177310284,3.20607,3119.1,3116.8,0.0075]
[1738177310584,0.0075,3119.1,3116.8,0.0075]
[1738177310880,3.20695,3118.3,3117.6,3.20758]
[1738177311027,3.20633,3118.9,3118.2,3.20695]
[1738177311232,3.20703,3118.2,3117.6,3.99399]
[1738177311449,0.7534,3119.2,3117.8,3.20736]
[1738177311776,3.20627,3118.9,3118.0,3.20715]
[1738177311978,0.0075,3119.1,3117.6,0.7864]
[1738177312193,5.14369832,3118.4,3114.7,5.14369832]
[1738177312488,3.20811,3117.1,3115.2,0.8195]
[1738177312648,3.20826,3117.0,3116.1,3.20905]
[1738177312826,3.20884,3116.4,3115.3,3.20996]
[1738177313029,0.8303,3117.2,3115.4,0.03208884]
[1738177313229,3.20859,3116.7,3115.2,0.8195]
[1738177313431,3.20864,3116.6,3115.9,3.20932]
[1738177313681,3.20811,3117.1,3116.2,3.20895]
[1738177313880,3.20811,3117.1,3115.9,0.320932]
[1738177314081,3.20859,3116.7,3115.7,0.0075]
[1738177314399,3.20866,3116.6,3115.6,3.20959]
[1738177314685,3.20808,3117.2,3116.4,0.813]
[1738177314833,3.2078,3117.4,3116.4,4.02174]
[1738177315065,3.20754,3117.7,3116.9,3.20828]
[1738177315240,3.20714,3118.1,3117.1,3.2081]
[1738177315469,3.2076,3117.6,3116.8,3.20835]
[1738177315668,3.20715,3118.1,3117.3,3.20789]
[1738177315987,0.7716,3118.4,3116.9,3.20822]
[1738177315988,3.20755,3117.7,3116.9,3.20822]
[1738177316278,0.7716,3118.4,3116.5,0.03957834]
[1738177316477,0.1,3120.3,3116.5,0.03957834]
[1738177316478,3.20688,3118.3,3117.3,3.20785]
[1738177316771,3.20771,3117.5,3116.6,3.20852]
[1738177316973,3.20782,3117.4,3116.5,3.20872]
[1738177317174,3.20781,3117.4,3116.6,3.20852]
[1738177317372,0.5575,3117.8,3116.4,0.813]
[1738177317576,0.320688,3118.3,3116.4,0.813]
[1738177317760,3.20757,3117.7,3116.6,0.0075]
[1738177317927,3.20729,3117.9,3117.2,3.20798]
[1738177318128,3.20739,3117.8,3117.2,3.20798]
[1738177318469,3.20749,3117.7,3117.1,3.20809]
[1738177318671,3.20762,3117.6,3116.0,3.21667]
[1738177318871,3.20791,3117.3,3116.3,3.20887]
[1738177319042,3.20781,3117.4,3116.7,3.20846]
[1738177319244,3.20777,3117.5,3116.0,0.0075]
[1738177319560,3.20782,3117.4,3116.7,3.20851]
[1738177319881,3.2079,3117.4,3116.6,3.20862]
[1738177320043,3.20781,3117.4,3116.3,3.20883]
[1738177320293,3.20754,3117.7,3116.8,3.20841]
[1738177320610,3.20689,3118.3,3117.0,0.015]
[1738177320909,3.20769,3117.6,3116.9,3.20831]
[1738177321128,4.75790621,3118.4,3116.6,0.8181]
[1738177321308,4.75790621,3118.4,3114.9,0.2]
[1738177321309,3.20952,3115.8,3115.3,0.8181]
[1738177321509,3.20927,3116.0,3115.3,0.8181]
[1738177321689,0.7758,3116.7,3115.3,0.8181]
[1738177321889,3.20916,3116.1,3115.4,3.20986]
[1738177322220,0.7758,3116.7,3115.3,0.8181]
[1738177322221,0.55,3116.5,3115.3,0.8181]
[1738177322421,3.20968,3115.6,3115.3,0.8181]
[1738177322714,3.20947,3115.8,3115.3,0.8181]
[1738177323020,4.512242,3116.5,3114.6,3.2987]
[1738177323021,3.20986,3115.4,3114.6,3.2987]
[1738177323317,3.21001,3115.3,3114.6,6.50929]
[1738177323478,3.20941,3115.9,3115.2,3.21002]
[1738177323826,3.20916,3116.1,3114.8,0.03209601]
[1738177323975,3.20937,3115.9,3115.2,3.21004]
[1738177324175,7.19290621,3116.4,3114.6,3.2987]
[1738177324386,3.76694,3115.8,3114.6,3.2987]
[1738177324584,3.20975,3115.6,3114.6,3.2987]
[1738177324798,3.20947,3115.8,3114.7,3.21058]
[1738177325016,4.19290621,3116.9,3115.0,0.015]
[1738177325172,4.19290621,3116.9,3115.9,3.20931]
[1738177325173,3.20871,3116.6,3115.9,3.20931]
[1738177325373,0.751,3117.8,3115.9,0.320931]
[1738177325581,0.751,3117.8,3116.2,0.7916]
[1738177325774,4.19290621,3117.4,3116.2,0.7916]
[1738177326032,3.20874,3116.5,3116.2,0.7916]
[1738177326235,3.0,3117.3,3115.8,3.20944]
[1738177326396,3.20779,3117.5,3116.3,3.20889]
[1738177326601,4.51368521,3117.4,3116.3,3.20887]
[1738177326900,3.20834,3116.9,3116.2,3.20898]
[1738177327223,0.5575,3117.6,3116.2,3.20898]
[1738177327376,3.20877,3116.5,3115.8,3.20943]
[1738177327577,3.20935,3115.9,3115.7,0.7916]
[1738177327818,3.20935,3115.9,3115.2,4.00479]
[1738177328020,4.19290621,3116.9,3115.5,0.0075]
[1738177328242,4.19290621,3117.4,3115.7,0.0075]
[1738177328420,0.8068,3118.2,3116.5,3.0]
[1738177328616,9.96e-06,3117.7,3117.6,7.02399]
[1738177328819,9.96e-06,3117.7,3117.6,4.03149]
[1738177329040,4.19290621,3119.4,3118.3,3.20687]
[1738177329041,3.20622,3119.0,3118.3,3.20687]
[1738177329256,0.16719766,3118.7,3118.3,3.20687]
[1738177329464,0.16719766,3118.7,3118.1,3.20707]
[1738177330018,3.20627,3118.9,3118.3,3.20686]
[1738177330466,3.20597,3119.2,3118.6,3.20649]
[1738177330619,3.20637,3118.8,3118.0,3.20708]
[1738177330822,3.0,3119.4,3117.6,0.8164]
[1738177330823,4.19290621,3119.4,3117.6,0.8164]
[1738177331060,4.74290621,3118.4,3116.5,0.7896]
[1738177331263,3.2078,3117.4,3116.5,0.7896]
[1738177331424,3.2078,3117.4,3116.5,3.99825]
[1738177331625,6.2078,3117.4,3116.5,0.7896]
[1738177331825,7.5749,3117.4,3115.7,3.20947]
[1738177332031,4.96820621,3117.9,3115.9,0.015]
[1738177332256,0.49682062,3117.8,3116.0,0.7657]
[1738177332565,3.20962,3115.7,3115.1,5.75014]
[1738177332726,3.20995,3115.4,3115.1,2.54]
[1738177332927,0.565,3115.8,3114.4,0.8276]
[1738177333161,0.47579062,3115.7,3114.3,3.21097]
[1738177333427,0.47579062,3115.7,3113.3,0.79530589]
[1738177333428,0.55,3115.2,3113.3,3.97513]
[1738177333763,3.21002,3115.3,3114.6,3.21068]
[1738177334058,3.0,3115.5,3114.7,3.21053]
[1738177334264,3.21024,3115.1,3114.4,3.96391]
[1738177334650,3.0,3115.6,3113.1,3.21217]
[1738177334651,3.21057,3114.8,3114.0,3.24338429]
[1738177334967,3.21002,3115.3,3114.0,3.2113]
[1738177335198,3.0,3115.6,3114.0,3.21126]
[1738177335324,3.21006,3115.2,3113.9,3.2114]
[1738177335522,3.0,3115.3,3113.8,0.7717]
[1738177335724,3.21089,3114.4,3113.8,0.7717]
[1738177335977,3.55,3114.8,3113.3,0.7712]
[1738177336127,3.2111,3114.2,3113.4,3.21191]
[1738177336322,3.0,3114.3,3112.8,0.7588]
[1738177336564,3.21101,3114.3,3113.7,3.2116]
[1738177336864,3.21023,3115.1,3114.3,3.21091]
[1738177337037,3.21006,3115.2,3113.5,3.21181]
[1738177337243,3.20986,3115.4,3114.4,3.21085]
[1738177337564,3.21042,3114.9,3113.6,3.0]
[1738177337720,3.21048,3114.8,3114.1,3.21111]
[1738177337921,3.0,3115.3,3113.5,6.21177]
[1738177337922,3.21029,3115.0,3114.3,3.21097]
[1738177338127,0.7917,3116.1,3114.5,0.8205]
[1738177338336,1.67794354,3119.3,3114.5,0.8205]
[1738177338337,4.19290621,3116.9,3115.1,3.21016]
[1738177338543,3.20922,3116.1,3115.4,3.20981]
[1738177338771,3.20862,3116.6,3115.1,3.21007]
[1738177338920,0.0075,3116.6,3115.1,3.21007]
[1738177339272,3.20981,3115.5,3114.5,7.03119]
[1738177339469,3.20981,3115.5,3114.9,3.21031]
[1738177339624,3.0,3115.6,3114.5,1.523619]
[1738177339828,3.2101,3115.2,3114.5,3.21077]
[1738177340068,3.21027,3115.0,3114.3,3.21096]
[1738177340249,3.21027,3115.0,3113.5,0.7688]
[1738177340250,3.21017,3115.1,3113.5,0.7688]
[1738177340451,3.7509,3115.8,3113.9,3.21139]
[1738177340452,3.21074,3114.6,3113.9,3.21139]
[1738177340635,3.21074,3114.6,3113.5,0.7688]
[1738177340636,3.21103,3114.3,3113.7,3.21158]
[1738177340841,3.21162,3113.7,3113.1,3.21223]
[1738177341056,3.21171,3113.6,3112.9,3.3641]
[1738177341359,3.21172,3113.6,3112.9,2.54]
[1738177341556,3.0,3113.7,3112.9,2.54]
[1738177341761,3.21195,3113.4,3112.9,2.54]
[1738177341973,3.0,3113.3,3112.9,2.54]
[1738177342131,3.21209,3113.3,3112.9,2.54]
[1738177342330,0.55,3113.6,3112.9,2.54]
[1738177342331,6.21233,3113.0,3112.9,2.54]
[1738177342530,3.0,3113.0,3112.1,0.005]
[1738177342744,0.8014,3112.9,3112.1,0.005]
[1738177342944,6.21316,3112.2,3112.1,0.005]
[1738177343470,3.0,3112.2,3112.1,0.005]
[1738177343674,0.8014,3112.9,3112.1,0.005]
[1738177343874,3.21254,3112.8,3112.1,0.005]
[1738177344082,3.21316,3112.2,3112.1,0.005]
[1738177344385,0.5575,3112.1,3111.6,0.32854808]
[1738177344589,6.21367,3111.7,3111.6,0.1611534]
[1738177344726,3.21355,3111.9,3111.6,0.1611534]
[1738177344931,3.21367,3111.7,3111.6,0.1611534]
[1738177345132,0.7886,3112.0,3111.6,0.1611534]
[1738177345582,3.21318,3112.2,3111.6,0.1611534]
[1738177345781,3.0,3112.0,3111.6,0.1611534]
[1738177346097,3.99415,3112.6,3111.9,3.21344]
[1738177346240,3.21287,3112.5,3111.6,3.40697622]
[1738177346455,3.21367,3111.7,3111.6,0.1611534]
[1738177346804,6.21367,3111.7,3111.6,0.1611534]
[1738177347369,6.22117,3111.7,3111.6,0.1611534]
[1738177347606,11.35754821,3111.7,3111.6,0.1611534]
[1738177347753,12.69784821,3111.7,3111.6,3.4e-06]
[1738177347951,5.91917821,3111.7,3109.1,2.543]
[1738177348170,3.0,3111.1,3109.5,3.21589]
[1738177348351,5.91917821,3111.7,3109.6,0.321589]
[1738177348552,0.7828,3111.7,3110.6,3.21476]
[1738177348802,3.0,3111.1,3110.2,3.21522]
[1738177348951,0.0075,3111.4,3110.1,0.7667]
[1738177349152,3.21474,3110.7,3109.8,3.21564]
[1738177349399,3.21401,3111.4,3110.0,0.0075]
[1738177349561,0.7828,3111.7,3111.1,3.21428]
[1738177349752,4.19290621,3112.2,3110.0,0.7751]
[1738177349952,3.2143,3111.1,3110.4,3.21501]
[1738177350219,0.0075,3110.9,3109.4,0.8302]
[1738177350402,3.21535,3110.1,3109.4,0.8302]
[1738177350697,3.0,3110.6,3109.4,0.8302]
[1738177350880,3.21542,3110.1,3109.3,3.21614]
[1738177351088,3.21524,3110.2,3109.5,3.21589]
[1738177351454,3.0,3110.3,3109.5,3.21589]
[1738177351649,7.23794,3110.6,3109.6,3.21576]
[1738177351867,4.02303,3110.6,3109.2,0.0075]
[1738177352105,3.21483,3110.6,3109.8,3.21563]
[1738177352303,3.21495,3110.5,3109.7,3.21565]
[1738177352504,3.21547,3110.0,3109.2,3.21626]
[1738177352687,3.21544,3110.0,3109.1,2.543]
[1738177353020,0.7824,3110.2,3109.1,2.543]
[1738177353213,3.21545,3110.0,3109.3,3.21607]
[1738177353499,3.21502,3110.4,3109.3,3.21615]
[1738177353699,0.8133,3110.8,3109.5,3.21585]
[1738177353906,3.21492,3110.5,3109.2,3.21626]
[1738177354106,0.8133,3110.8,3109.2,3.21626]
[1738177354107,3.21485,3110.6,3109.4,0.03215678]
[1738177354266,3.2151,3110.4,3109.4,3.21604]
[1738177354598,3.21542,3110.1,3109.1,5.7593]
[1738177354900,3.0,3110.3,3109.2,3.21624]
[1738177355103,3.0,3110.1,3109.5,3.21593]
[1738177355267,3.21471,3110.7,3109.7,3.21567]
[1738177355467,0.8133,3110.8,3109.4,3.21605]
[1738177355656,3.21554,3109.9,3109.3,3.21615]
[1738177355855,3.21502,3110.4,3109.1,5.75927]
[1738177356056,3.21502,3110.4,3108.7,0.818]
[1738177356057,3.21614,3109.4,3108.7,0.818]
[1738177356259,3.21627,3109.2,3108.7,0.818]
[1738177356458,3.21627,3109.2,3108.5,0.1611534]
[1738177356655,3.21605,3109.4,3108.5,0.1611534]
[1738177356850,3.0,3109.5,3108.7,3.2167]
[1738177357078,0.771,3109.7,3108.8,3.21666]
[1738177357280,3.21596,3109.5,3108.9,3.21651]
[1738177357590,3.21617,3109.3,3108.7,3.2167]
[1738177357780,6.43198,3109.5,3108.7,3.2167]
[1738177357953,3.21623,3109.3,3108.5,3.3780934]
[1738177358150,0.321623,3109.3,3108.5,0.1611534]
[1738177358355,3.2168,3108.7,3108.5,0.1611534]
[1738177358597,3.21688,3108.6,3108.5,0.1611534]
[1738177358800,6.21688,3108.6,3108.5,0.1611534]
[1738177359001,7.04598,3108.6,3108.5,0.1611534]
[1738177359206,7.05348,3108.6,3108.5,0.1611534]
[1738177359519,8.95968,3108.6,3108.5,3.4e-06]
[1738177359855,3.21833,3107.2,3107.1,0.005]
[1738177360054,7.02653,3107.2,3107.1,0.005]
[1738177360699,4.19290621,3108.5,3107.1,0.005]
[1738177360902,3.0,3107.3,3107.1,0.005]
[1738177361061,4.53433,3107.2,3107.1,0.005]
[1738177361262,3.22072,3104.9,3103.9,0.8086]
[1738177361495,3.22023,3105.4,3104.2,3.23880337]
[1738177361662,0.322023,3105.3,3104.2,0.01747337]
[1738177362003,3.0,3104.9,3104.2,0.01747337]
[1738177362164,3.0,3104.2,3103.2,0.45406425]
[1738177362356,3.0,3104.2,3102.3,0.03221475]
[1738177362357,3.0,3103.3,3102.3,0.7999]
[1738177362560,3.22207,3103.6,3102.5,3.22312]
[1738177362772,3.22253,3103.2,3102.3,4.02328]
[1738177363080,0.7521,3103.8,3102.2,0.1611534]
[1738177363275,4.49290621,3104.2,3102.2,0.1611534]
[1738177363276,3.22155,3104.1,3103.1,3.17255]
[1738177363604,0.7587,3105.1,3103.7,3.2219]
[1738177363899,3.22103,3104.6,3103.1,0.317255]
[1738177364108,0.7587,3105.1,3103.3,6.44474]
[1738177364264,0.7587,3105.1,3103.0,0.757]
[1738177364461,3.22117,3104.5,3103.1,0.03222015]
[1738177364718,3.22123,3104.4,3103.3,3.22233]
[1738177364867,0.322117,3104.5,3103.0,0.757]
[1738177365258,0.322117,3104.5,3102.4,3.22322]
[1738177365259,6.22199,3103.7,3102.7,3.22299]
[1738177365404,3.22153,3104.2,3102.2,0.1611534]
[1738177365605,3.22137,3104.3,3102.9,3.22279]
[1738177365806,0.8107,3104.7,3102.3,4.94680621]
[1738177366021,0.8107,3104.7,3102.6,3.2231]
[1738177366183,3.22049,3105.2,3102.8,7.97310621]
[1738177366373,0.79,3105.4,3104.5,3.22112]
[1738177366573,0.79,3105.4,3103.8,0.565]
[1738177366769,4.0102,3105.4,3103.7,0.7572]
[1738177367010,3.22053,3105.1,3104.3,3.22133]
[1738177367166,3.0,3105.0,3104.2,3.22136]
[1738177367374,3.0,3105.0,3103.7,0.7572]
[1738177367375,3.0,3105.0,3104.3,3.22128]
[1738177367570,1.19102,3105.4,3104.9,3.22069]
[1738177367810,3.0,3105.7,3104.7,3.22092]
[1738177368110,0.7618,3105.8,3105.1,3.22048]
[1738177368317,0.7618,3106.4,3105.1,3.542548]
[1738177368609,0.7618,3107.0,3106.0,3.21955]
[1738177368793,3.0,3106.5,3105.5,3.22005]
[1738177369033,0.7618,3107.0,3105.3,3.22029]
[1738177369188,3.2199,3105.7,3105.0,3.22055]
[1738177369615,3.0,3105.8,3105.1,3.22048]
[1738177369789,4.03599,3105.9,3104.3,4.04337]
[1738177369790,0.8163,3105.9,3105.3,3.22021]
[1738177370009,3.21874,3106.8,3105.9,3.21966]
[1738177370316,0.7859,3107.0,3105.6,0.0075]
[1738177370489,0.7859,3107.0,3105.4,0.8136]
[1738177370490,3.21877,3106.8,3106.0,3.21957]
[1738177370695,3.21855,3107.0,3106.0,3.21957]
[1738177370918,0.321829,3107.3,3105.7,0.5575]
[1738177371120,4.22050693,3108.3,3105.7,0.5575]
[1738177371121,3.21762,3107.9,3106.3,0.5575]
[1738177371330,3.21789,3107.7,3106.7,3.21875]
[1738177371475,3.21789,3107.7,3106.9,3.21855]
[1738177371684,3.21838,3107.2,3105.5,0.7763]
[1738177371882,3.21809,3107.5,3106.5,3.21905]
[1738177372117,0.321762,3107.9,3106.2,0.7996]
[1738177372316,3.21761,3107.9,3107.0,3.21849]
[1738177372529,3.21793,3107.6,3106.8,3.21868]
[1738177372821,3.21803,3107.5,3106.3,3.21926]
[1738177373020,3.21777,3107.8,3106.7,3.21879]
[1738177373219,0.7569,3108.1,3106.2,0.7996]
[1738177373220,0.7569,3108.1,3106.9,3.21861]
[1738177373518,0.7569,3108.1,3106.7,3.21877]
[1738177373824,3.21836,3107.2,3106.4,3.21915]
[1738177374017,3.21836,3107.2,3106.3,3.21926]
[1738177374018,3.21824,3107.3,3106.5,3.21899]
[1738177374323,3.97437,3108.1,3106.6,3.21887]
[1738177374478,3.21824,3107.3,3106.6,3.21893]
[1738177374677,3.0,3107.4,3106.7,3.21879]
[1738177374882,3.21829,3107.3,3106.5,3.21899]
[1738177375077,6.21821,3107.4,3106.2,0.7996]
[1738177375324,0.397437,3108.0,3106.2,0.7996]
[1738177375325,3.0,3107.7,3106.2,0.7996]
[1738177375505,3.21881,3106.8,3106.2,0.7996]
[1738177375707,3.21913,3106.5,3105.7,3.21986]
[1738177375910,0.7843,3107.0,3105.6,0.767]
[1738177376224,0.7843,3107.0,3105.6,3.98695]
[1738177376541,3.0,3106.8,3105.3,0.0075]
[1738177376824,6.59726,3106.8,3106.0,3.21956]
[1738177376993,3.0,3106.8,3106.0,3.21948]
[1738177377194,3.21874,3106.9,3106.1,3.21946]
[1738177377424,0.7843,3107.0,3106.4,3.21915]
[1738177377630,3.21814,3107.4,3106.5,3.21897]
[1738177377837,0.8281,3107.6,3106.9,3.21854]
[1738177378124,3.21789,3107.7,3106.9,3.21854]
[1738177378281,3.21789,3107.7,3107.0,3.21851]
[1738177378485,3.0,3107.9,3106.3,0.0075]
[1738177378685,3.21837,3107.2,3106.3,3.21926]
[1738177378911,3.21837,3107.2,3106.2,0.7883]
[1738177378912,3.21874,3106.9,3106.2,4.00764]
[1738177379111,0.643724,3106.9,3105.7,0.8049]
[1738177379415,3.21833,3107.2,3105.9,3.21963]
[1738177379585,3.21925,3106.4,3105.7,4.02473]
[1738177379797,3.8225,3107.3,3105.8,3.21978]
[1738177379997,3.21951,3106.1,3105.7,0.8049]
[1738177380249,3.21927,3106.3,3105.7,0.8049]
[1738177380525,3.0075,3107.1,3105.1,0.7829]
[1738177380682,0.7814,3106.2,3104.6,0.7829]
[1738177380882,3.22123,3104.4,3103.8,0.39526379]
[1738177381095,3.7814,3105.1,3103.7,3.22196]
[1738177381325,3.22117,3104.5,3103.8,3.22185]
[1738177381536,3.22196,3103.7,3103.6,0.7829]
[1738177381828,3.22081,3104.8,3103.0,0.807]
[1738177381829,3.0,3104.4,3103.0,0.807]
[1738177382001,0.322081,3104.7,3103.4,3.22218]
[1738177382200,3.22055,3105.1,3103.3,0.807]
[1738177382436,0.7811,3105.7,3104.4,4.04233]
[1738177382738,3.2203,3105.3,3104.4,0.8211]
[1738177382935,3.22148,3104.2,3103.7,0.8211]